[Event "Late-Titled-Tuesday-Blitz-April-16-2024"]
[Site "Chess.com"]
[Date "2024.04.16"]
[Round "1"]
[White "FizzyBand"]
[Black "LUISMIGUELOV"]
[Result "1/2-1/2"]
[WhiteElo "2547"]
[BlackElo "2179"]
[TimeControl "180+1"]
[EndTime "14:08:00 PDT"]
[Termination "Game drawn by repetition"]

1. e4 {[%clk 0:03:00.9]} 1... c6 {[%clk 0:02:59.9]} 2. d4 {[%clk 0:03:00.8]}
2... d5 {[%clk 0:03:00.5]} 3. Nd2 {[%clk 0:03:01.7]} 3... dxe4 {[%clk
0:02:59.9]} 4. Nxe4 {[%clk 0:03:02.6]} 4... Bf5 {[%clk 0:02:59.8]} 5. Ng3 {[%clk
0:03:02.9]} 5... Bg6 {[%clk 0:03:00.1]} 6. h4 {[%clk 0:03:03.8]} 6... h6 {[%clk
0:02:59.4]} 7. Nf3 {[%clk 0:03:04.4]} 7... Nd7 {[%clk 0:02:58.7]} 8. h5 {[%clk
0:03:04.9]} 8... Bh7 {[%clk 0:02:58.8]} 9. Bd3 {[%clk 0:03:05.8]} 9... Bxd3
{[%clk 0:02:58.8]} 10. Qxd3 {[%clk 0:03:06.7]} 10... e6 {[%clk 0:02:58.9]} 11.
Bd2 {[%clk 0:03:07.2]} 11... Qb6 {[%clk 0:02:56.4]} 12. O-O-O {[%clk 0:03:07]}
12... Ngf6 {[%clk 0:02:54.9]} 13. Ne4 {[%clk 0:03:06.2]} 13... Nxe4 {[%clk
0:02:54]} 14. Qxe4 {[%clk 0:03:07.1]} 14... Bb4 {[%clk 0:02:52]} 15. Bf4 {[%clk
0:02:53]} 15... O-O-O {[%clk 0:02:48.8]} 16. Ne5 {[%clk 0:02:45.5]} 16... Nxe5
{[%clk 0:02:47.5]} 17. Bxe5 {[%clk 0:02:44.8]} 17... Rhg8 {[%clk 0:02:43]} 18.
Rh3 {[%clk 0:02:40.3]} 18... Bd6 {[%clk 0:02:40.1]} 19. Rb3 {[%clk 0:02:33.4]}
19... Qc7 {[%clk 0:02:36.8]} 20. Rbd3 {[%clk 0:02:16.4]} 20... Bxe5 {[%clk
0:02:34.6]} 21. dxe5 {[%clk 0:02:16.1]} 21... Rxd3 {[%clk 0:02:33.8]} 22. Rxd3
{[%clk 0:02:04.7]} 22... Rd8 {[%clk 0:02:33.8]} 23. Rxd8+ {[%clk 0:01:58.3]}
23... Qxd8 {[%clk 0:02:33.2]} 24. f4 {[%clk 0:01:42.7]} 24... Qh4 {[%clk
0:02:31.8]} 25. b3 {[%clk 0:01:19.1]} 25... Qxh5 {[%clk 0:02:28.1]} 26. Kb2
{[%clk 0:01:19.1]} 26... Qg6 {[%clk 0:02:23]} 27. Qb4 {[%clk 0:01:17.9]} 27...
h5 {[%clk 0:02:06.6]} 28. a4 {[%clk 0:01:17.7]} 28... a6 {[%clk 0:02:02.8]} 29.
Qf8+ {[%clk 0:01:04.9]} 29... Kc7 {[%clk 0:02:02]} 30. Qd6+ {[%clk 0:01:05.1]}
30... Kc8 {[%clk 0:02:01.5]} 31. b4 {[%clk 0:00:54]} 31... h4 {[%clk 0:01:59.5]}
32. Qf8+ {[%clk 0:00:50.2]} 32... Kc7 {[%clk 0:01:58.6]} 33. Qe7+ {[%clk
0:00:50.7]} 33... Kc8 {[%clk 0:01:58.5]} 34. Qxh4 {[%clk 0:00:45]} 34... Qxg2
{[%clk 0:01:55.4]} 35. Qe7 {[%clk 0:00:43.9]} 35... Qg6 {[%clk 0:01:51.2]} 36.
Kc3 {[%clk 0:00:31.1]} 36... Qf5 {[%clk 0:01:50.6]} 37. Qf8+ {[%clk 0:00:28.9]}
37... Kc7 {[%clk 0:01:49.7]} 38. Qd6+ {[%clk 0:00:26.7]} 38... Kc8 {[%clk
0:01:49.2]} 39. Qf8+ {[%clk 0:00:19.1]} 39... Kd7 {[%clk 0:01:45.2]} 40. Qb8
{[%clk 0:00:15.9]} 40... Qxf4 {[%clk 0:01:43.5]} 41. Qxb7+ {[%clk 0:00:16.2]}
41... Kd8 {[%clk 0:01:42.4]} 42. Qb8+ {[%clk 0:00:15.6]} 42... Kd7 {[%clk
0:01:42.2]} 43. Qd6+ {[%clk 0:00:16.3]} 43... Kc8 {[%clk 0:01:27.5]} 44. Qxc6+
{[%clk 0:00:17.2]} 44... Kd8 {[%clk 0:01:24.6]} 45. Qb6+ {[%clk 0:00:17.2]}
45... Kd7 {[%clk 0:01:21.1]} 46. Qd6+ {[%clk 0:00:15.9]} 46... Ke8 {[%clk
0:01:18.1]} 47. b5 {[%clk 0:00:14.4]} 47... axb5 {[%clk 0:01:17]} 48. axb5
{[%clk 0:00:15.3]} 48... Qf3+ {[%clk 0:01:13.7]} 49. Kb4 {[%clk 0:00:12.8]}
49... Qe4+ {[%clk 0:01:09]} 50. c4 {[%clk 0:00:13.3]} 50... Qe1+ {[%clk
0:01:02.9]} 51. Kc5 {[%clk 0:00:13.8]} 51... Qe3+ {[%clk 0:00:58.6]} 52. Kc6
{[%clk 0:00:13.9]} 52... Qe4+ {[%clk 0:00:56.7]} 53. Kc5 {[%clk 0:00:07.5]}
53... Qe3+ {[%clk 0:00:55.6]} 54. Kb4 {[%clk 0:00:06.6]} 54... Qe1+ {[%clk
0:00:52.3]} 55. Ka4 {[%clk 0:00:06.9]} 55... Qa1+ {[%clk 0:00:51.3]} 56. Kb3
{[%clk 0:00:05.4]} 56... Qb1+ {[%clk 0:00:46.8]} 57. Kc3 {[%clk 0:00:05.4]}
57... Qe1+ {[%clk 0:00:43]} 58. Kd4 {[%clk 0:00:04.2]} 58... Qf2+ {[%clk
0:00:36.1]} 59. Kd3 {[%clk 0:00:03.8]} 59... Qf3+ {[%clk 0:00:33.4]} 60. Kc2
{[%clk 0:00:01.8]} 60... Qe2+ {[%clk 0:00:32.9]} 61. Kb3 {[%clk 0:00:02.5]}
61... Qe3+ {[%clk 0:00:28.8]} 62. Kb4 {[%clk 0:00:03.1]} 62... Qe1+ {[%clk
0:00:28.2]} 1/2-1/2

[Event "Late-Titled-Tuesday-Blitz-April-16-2024"]
[Site "Chess.com"]
[Date "2024.04.16"]
[Round "1"]
[White "kinga2008"]
[Black "Binary010"]
[Result "0-1"]
[WhiteElo "2428"]
[BlackElo "2777"]
[TimeControl "180+1"]
[EndTime "14:08:02 PDT"]
[Termination "Binary010 won on time"]

1. e4 {[%clk 0:02:51.9]} 1... c5 {[%clk 0:02:59.8]} 2. Nf3 {[%clk 0:02:50.5]}
2... a6 {[%clk 0:03:00.2]} 3. c3 {[%clk 0:02:49.4]} 3... d5 {[%clk 0:02:59]} 4.
Bd3 {[%clk 0:02:48.1]} 4... dxe4 {[%clk 0:02:47.6]} 5. Bxe4 {[%clk 0:02:46.3]}
5... Nf6 {[%clk 0:02:48.3]} 6. Bc2 {[%clk 0:02:46.3]} 6... Nc6 {[%clk
0:02:47.6]} 7. O-O {[%clk 0:02:45.5]} 7... Bg4 {[%clk 0:02:47.6]} 8. Bb3 {[%clk
0:02:44.1]} 8... e6 {[%clk 0:02:47.5]} 9. h3 {[%clk 0:02:42.7]} 9... Bh5 {[%clk
0:02:46.3]} 10. Re1 {[%clk 0:02:40]} 10... Be7 {[%clk 0:02:44.9]} 11. d3 {[%clk
0:02:39]} 11... O-O {[%clk 0:02:44.6]} 12. Bf4 {[%clk 0:02:31.8]} 12... Qd7
{[%clk 0:02:25.7]} 13. Na3 {[%clk 0:02:24.1]} 13... Rad8 {[%clk 0:02:19.2]} 14.
Bc2 {[%clk 0:02:10.9]} 14... b5 {[%clk 0:02:18.7]} 15. Qe2 {[%clk 0:01:59.8]}
15... Qd5 {[%clk 0:02:05.5]} 16. Qe3 {[%clk 0:01:39.6]} 16... Bxf3 {[%clk
0:02:02.1]} 17. Qxf3 {[%clk 0:01:37]} 17... Qxf3 {[%clk 0:02:02.2]} 18. gxf3
{[%clk 0:01:37.9]} 18... Bd6 {[%clk 0:02:01.9]} 19. Bg3 {[%clk 0:01:36.1]} 19...
Nh5 {[%clk 0:02:00]} 20. Kg2 {[%clk 0:01:32.6]} 20... Nf4+ {[%clk 0:01:54.6]}
21. Kh2 {[%clk 0:01:32.6]} 21... Bb8 {[%clk 0:01:47.5]} 22. Rad1 {[%clk
0:01:31]} 22... Ne7 {[%clk 0:01:46.8]} 23. Re4 {[%clk 0:01:23.3]} 23... Neg6
{[%clk 0:01:43.2]} 24. d4 {[%clk 0:01:21.4]} 24... c4 {[%clk 0:01:40.8]} 25. Nb1
{[%clk 0:01:17.4]} 25... h5 {[%clk 0:01:36.6]} 26. h4 {[%clk 0:01:01.3]} 26...
Nd5 {[%clk 0:01:36.1]} 27. Nd2 {[%clk 0:00:59.2]} 27... Rfe8 {[%clk 0:01:26.7]}
28. Bxb8 {[%clk 0:00:50.7]} 28... Rxb8 {[%clk 0:01:26.6]} 29. Kg3 {[%clk
0:00:49.6]} 29... f5 {[%clk 0:01:15.1]} 30. Ree1 {[%clk 0:00:47.1]} 30... Kf7
{[%clk 0:01:15.6]} 31. Nf1 {[%clk 0:00:47.1]} 31... b4 {[%clk 0:01:13.8]} 32.
Ba4 {[%clk 0:00:45.3]} 32... Re7 {[%clk 0:01:12.7]} 33. cxb4 {[%clk 0:00:28.9]}
33... Rxb4 {[%clk 0:01:12.5]} 34. b3 {[%clk 0:00:27.7]} 34... Nc3 {[%clk
0:01:11.7]} 35. Rc1 {[%clk 0:00:20.2]} 35... Nxa4 {[%clk 0:01:10.6]} 36. bxa4
{[%clk 0:00:19.9]} 36... Rxa4 {[%clk 0:01:07.9]} 37. Nd2 {[%clk 0:00:20.6]}
37... Rc7 {[%clk 0:00:54.8]} 38. Rc2 {[%clk 0:00:20.1]} 38... c3 {[%clk
0:00:50.8]} 39. Nb3 {[%clk 0:00:17.9]} 39... f4+ {[%clk 0:00:44.1]} 40. Kh3
{[%clk 0:00:16.6]} 40... Rac4 {[%clk 0:00:44.1]} 41. Rec1 {[%clk 0:00:16.2]}
41... Ne7 {[%clk 0:00:38]} 42. Nc5 {[%clk 0:00:12.1]} 42... Nf5 {[%clk
0:00:35.4]} 43. Rxc3 {[%clk 0:00:11]} 43... Rxc3 {[%clk 0:00:35.4]} 44. Rxc3
{[%clk 0:00:11.5]} 44... Nxd4 {[%clk 0:00:36]} 45. Rc4 {[%clk 0:00:08]} 45... e5
{[%clk 0:00:32.8]} 46. Kg2 {[%clk 0:00:07.3]} 46... Nf5 {[%clk 0:00:26.4]} 47.
Kh3 {[%clk 0:00:06.2]} 47... Ke7 {[%clk 0:00:24.1]} 48. Rc3 {[%clk 0:00:02.8]}
48... Nd6 {[%clk 0:00:20.9]} 49. a4 {[%clk 0:00:02.7]} 49... a5 {[%clk
0:00:18.6]} 50. Ne4 {[%clk 0:00:01.9]} 50... Rxc3 {[%clk 0:00:17.1]} 51. Nxc3
{[%clk 0:00:02.3]} 51... Ke6 {[%clk 0:00:16.6]} 52. Kg2 {[%clk 0:00:02.5]} 52...
Nf5 {[%clk 0:00:16.9]} 53. Kh3 {[%clk 0:00:02.4]} 53... Nd4 {[%clk 0:00:17.6]}
54. Kg2 {[%clk 0:00:02.6]} 54... Kf5 {[%clk 0:00:16.1]} 55. Nd5 {[%clk
0:00:02.6]} 55... g5 {[%clk 0:00:14.4]} 56. hxg5 {[%clk 0:00:02.1]} 56... Kxg5
{[%clk 0:00:15.1]} 57. Ne7 {[%clk 0:00:01.9]} 57... h4 {[%clk 0:00:13.4]} 0-1

[Event "Late-Titled-Tuesday-Blitz-April-16-2024"]
[Site "Chess.com"]
[Date "2024.04.16"]
[Round "1"]
[White "jup1978"]
[Black "ameetghasi100"]
[Result "0-1"]
[WhiteElo "2431"]
[BlackElo "2782"]
[TimeControl "180+1"]
[EndTime "14:08:03 PDT"]
[Termination "ameetghasi100 won on time"]

1. d4 {[%clk 0:02:56.7]} 1... Nf6 {[%clk 0:02:58.7]} 2. Nf3 {[%clk 0:02:57.6]}
2... g6 {[%clk 0:02:59.1]} 3. g3 {[%clk 0:02:58.2]} 3... Bg7 {[%clk 0:02:59.6]}
4. Bg2 {[%clk 0:02:58.5]} 4... O-O {[%clk 0:03:00.5]} 5. O-O {[%clk 0:02:58.9]}
5... d6 {[%clk 0:03:01.4]} 6. c4 {[%clk 0:02:58.3]} 6... c6 {[%clk 0:03:02.3]}
7. h3 {[%clk 0:02:58]} 7... Qa5 {[%clk 0:03:01.4]} 8. Nc3 {[%clk 0:02:56.9]}
8... e5 {[%clk 0:02:58]} 9. dxe5 {[%clk 0:02:51.2]} 9... dxe5 {[%clk 0:02:53.8]}
10. Qa4 {[%clk 0:02:50.8]} 10... Qxa4 {[%clk 0:02:47.4]} 11. Nxa4 {[%clk
0:02:51.7]} 11... Nbd7 {[%clk 0:02:46.7]} 12. b3 {[%clk 0:02:46.8]} 12... Re8
{[%clk 0:02:36.2]} 13. Ba3 {[%clk 0:02:44.4]} 13... e4 {[%clk 0:02:29.7]} 14.
Nh2 {[%clk 0:02:38.6]} 14... e3 {[%clk 0:02:29]} 15. f4 {[%clk 0:02:31.4]} 15...
Nh5 {[%clk 0:02:28]} 16. Rad1 {[%clk 0:02:24.2]} 16... Nxg3 {[%clk 0:02:27.7]}
17. Rfe1 {[%clk 0:02:22.7]} 17... Nf6 {[%clk 0:02:25.7]} 18. Bd6 {[%clk
0:01:56.8]} 18... Nfh5 {[%clk 0:02:20.8]} 19. Ng4 {[%clk 0:01:50.4]} 19... Nf5
{[%clk 0:02:11.3]} 20. Bc7 {[%clk 0:01:47.3]} 20... Nh4 {[%clk 0:01:48.4]} 21.
Rd3 {[%clk 0:01:28]} 21... Bf5 {[%clk 0:01:46.9]} 22. Rxe3 {[%clk 0:01:25.8]}
22... Re4 {[%clk 0:01:43.5]} 23. Rxe4 {[%clk 0:01:14.4]} 23... Nxg2 {[%clk
0:01:42.4]} 24. Kxg2 {[%clk 0:01:08.1]} 24... Bxe4+ {[%clk 0:01:42.4]} 25. Kf2
{[%clk 0:01:08.2]} 25... Rc8 {[%clk 0:01:37.6]} 26. Be5 {[%clk 0:01:06.5]} 26...
f6 {[%clk 0:01:35.9]} 27. Bb2 {[%clk 0:01:02.3]} 27... Nxf4 {[%clk 0:01:31.1]}
28. h4 {[%clk 0:00:59]} 28... h5 {[%clk 0:01:11.8]} 29. Ne3 {[%clk 0:00:55.6]}
29... b6 {[%clk 0:00:41.9]} 30. Rd1 {[%clk 0:00:54.7]} 30... Rc7 {[%clk
0:00:42]} 31. Rd8+ {[%clk 0:00:52.7]} 31... Kf7 {[%clk 0:00:40.9]} 32. Nc3
{[%clk 0:00:45.8]} 32... Re7 {[%clk 0:00:34.4]} 33. Rd6 {[%clk 0:00:36.5]} 33...
c5 {[%clk 0:00:31.9]} 34. Rd8 {[%clk 0:00:32.5]} 34... Bb7 {[%clk 0:00:19.7]}
35. Nb5 {[%clk 0:00:26.6]} 35... Nh3+ {[%clk 0:00:18.2]} 36. Kf1 {[%clk
0:00:18.9]} 36... Rxe3 {[%clk 0:00:17.9]} 37. Rd7+ {[%clk 0:00:18.7]} 37... Re7
{[%clk 0:00:17.6]} 38. Nd6+ {[%clk 0:00:19.2]} 38... Ke6 {[%clk 0:00:17.7]} 39.
Rxe7+ {[%clk 0:00:19.6]} 39... Kxe7 {[%clk 0:00:18]} 40. Nxb7 {[%clk 0:00:20.2]}
40... Nf4 {[%clk 0:00:17.2]} 41. a4 {[%clk 0:00:18.1]} 41... Kd7 {[%clk
0:00:16.4]} 42. a5 {[%clk 0:00:18.5]} 42... Kc7 {[%clk 0:00:15.5]} 43. a6 {[%clk
0:00:18.8]} 43... Ne6 {[%clk 0:00:14.8]} 44. e3 {[%clk 0:00:17.1]} 44... g5
{[%clk 0:00:14.3]} 45. Kf2 {[%clk 0:00:14.9]} 45... g4 {[%clk 0:00:14.6]} 46.
Kg3 {[%clk 0:00:13.6]} 46... f5 {[%clk 0:00:14.8]} 47. Bxg7 {[%clk 0:00:10.7]}
47... Nxg7 {[%clk 0:00:15.7]} 48. Kf4 {[%clk 0:00:08.8]} 48... Ne6+ {[%clk
0:00:15.9]} 49. Kg3 {[%clk 0:00:09.1]} 49... Nf8 {[%clk 0:00:10.7]} 50. Kf4
{[%clk 0:00:09.3]} 50... Nd7 {[%clk 0:00:11.2]} 51. Kg3 {[%clk 0:00:05]} 51...
Nb8 {[%clk 0:00:10.8]} 52. b4 {[%clk 0:00:01.6]} 52... cxb4 {[%clk 0:00:10.6]}
53. c5 {[%clk 0:00:01.2]} 53... b3 {[%clk 0:00:10.7]} 54. cxb6+ {[%clk
0:00:01.1]} 54... Kxb6 {[%clk 0:00:11.6]} 0-1

[Event "Late-Titled-Tuesday-Blitz-April-16-2024"]
[Site "Chess.com"]
[Date "2024.04.16"]
[Round "1"]
[White "TanitoluwaAps116"]
[Black "SergioMoralesG"]
[Result "1-0"]
[WhiteElo "2785"]
[BlackElo "2436"]
[TimeControl "180+1"]
[EndTime "14:08:04 PDT"]
[Termination "TanitoluwaAps116 won by resignation"]

1. e4 {[%clk 0:02:34.1]} 1... c5 {[%clk 0:02:59.2]} 2. Nf3 {[%clk 0:02:33.7]}
2... e6 {[%clk 0:02:59.7]} 3. c3 {[%clk 0:02:29.3]} 3... Nf6 {[%clk 0:02:59.2]}
4. e5 {[%clk 0:02:23]} 4... Nd5 {[%clk 0:02:59.1]} 5. Bc4 {[%clk 0:02:22.8]}
5... d6 {[%clk 0:02:57.7]} 6. d4 {[%clk 0:02:22.3]} 6... cxd4 {[%clk 0:02:57.8]}
7. cxd4 {[%clk 0:02:10]} 7... Nc6 {[%clk 0:02:57.4]} 8. O-O {[%clk 0:02:09]}
8... Be7 {[%clk 0:02:57.9]} 9. Qe2 {[%clk 0:02:08.8]} 9... O-O {[%clk
0:02:57.2]} 10. Rd1 {[%clk 0:02:07.6]} 10... Na5 {[%clk 0:02:56.8]} 11. Bb5
{[%clk 0:02:04.5]} 11... a6 {[%clk 0:02:50.2]} 12. Bd3 {[%clk 0:02:03.7]} 12...
Nb4 {[%clk 0:02:49.6]} 13. Nc3 {[%clk 0:02:03]} 13... Nxd3 {[%clk 0:02:47.7]}
14. Rxd3 {[%clk 0:02:03.9]} 14... b5 {[%clk 0:02:37.5]} 15. d5 {[%clk
0:02:02.3]} 15... Qc7 {[%clk 0:02:20.2]} 16. Bf4 {[%clk 0:01:28]} 16... Nc4
{[%clk 0:01:51.3]} 17. Re1 {[%clk 0:01:00.5]} 17... dxe5 {[%clk 0:01:24.7]} 18.
Nxe5 {[%clk 0:01:01.4]} 18... Nxe5 {[%clk 0:01:24.4]} 19. Bxe5 {[%clk
0:01:02.3]} 19... Bd6 {[%clk 0:01:12.2]} 20. dxe6 {[%clk 0:00:40.6]} 20... Bxe5
{[%clk 0:01:11.4]} 21. Nd5 {[%clk 0:00:39.9]} 21... Bxh2+ {[%clk 0:00:50.1]} 22.
Kh1 {[%clk 0:00:39.5]} 22... Qe5 {[%clk 0:00:42]} 23. e7 {[%clk 0:00:27.2]}
23... Re8 {[%clk 0:00:25.7]} 24. Qxe5 {[%clk 0:00:25.8]} 24... Bxe5 {[%clk
0:00:26.6]} 25. Rxe5 {[%clk 0:00:26.4]} 25... Ra7 {[%clk 0:00:19.4]} 26. Nb6
{[%clk 0:00:18.8]} 26... Be6 {[%clk 0:00:17.9]} 27. f4 {[%clk 0:00:16.3]} 27...
g6 {[%clk 0:00:15.6]} 28. g4 {[%clk 0:00:15]} 28... Raxe7 {[%clk 0:00:10.3]} 29.
f5 {[%clk 0:00:13.5]} 29... gxf5 {[%clk 0:00:09.6]} 30. gxf5 {[%clk 0:00:13.9]}
30... Bxa2 {[%clk 0:00:07.6]} 31. Rxe7 {[%clk 0:00:12.6]} 31... Rxe7 {[%clk
0:00:08]} 32. f6 {[%clk 0:00:13.2]} 32... Re8 {[%clk 0:00:06.7]} 33. b3 {[%clk
0:00:13.3]} 33... Bb1 {[%clk 0:00:06.2]} 34. Rd6 {[%clk 0:00:13.4]} 34... Bg6
{[%clk 0:00:06.1]} 35. Kg1 {[%clk 0:00:13.1]} 35... h5 {[%clk 0:00:06.5]} 36.
Nd5 {[%clk 0:00:13.5]} 36... Kh7 {[%clk 0:00:06.5]} 37. Ne7 {[%clk 0:00:13.2]}
37... a5 {[%clk 0:00:05.7]} 38. Ra6 {[%clk 0:00:12.6]} 38... Kh6 {[%clk
0:00:04.9]} 39. Rxa5 {[%clk 0:00:12.2]} 39... Rb8 {[%clk 0:00:05.1]} 40. Ra6
{[%clk 0:00:11.8]} 40... Kg5 {[%clk 0:00:05.1]} 41. b4 {[%clk 0:00:11.7]} 41...
h4 {[%clk 0:00:04.9]} 42. Kh2 {[%clk 0:00:11.4]} 42... Kg4 {[%clk 0:00:04.9]}
43. Rd6 {[%clk 0:00:10.2]} 43... Ra8 {[%clk 0:00:04.5]} 44. Rd4+ {[%clk
0:00:10.2]} 44... Kg5 {[%clk 0:00:05.1]} 45. Rd6 {[%clk 0:00:08.8]} 45... Ra2+
{[%clk 0:00:04.4]} 46. Kg1 {[%clk 0:00:09.4]} 46... Kg4 {[%clk 0:00:04.4]} 47.
Nxg6 {[%clk 0:00:09.4]} 47... fxg6 {[%clk 0:00:03.3]} 48. f7 {[%clk 0:00:09.9]}
48... Ra1+ {[%clk 0:00:03.6]} 49. Kf2 {[%clk 0:00:08.6]} 49... Ra2+ {[%clk
0:00:04.5]} 50. Ke3 {[%clk 0:00:08.6]} 50... Ra8 {[%clk 0:00:05.2]} 51. Rxg6+
{[%clk 0:00:08.8]} 51... Kh3 {[%clk 0:00:04.5]} 52. Rg8 {[%clk 0:00:09.7]} 52...
Ra3+ {[%clk 0:00:03.9]} 53. Kd4 {[%clk 0:00:09.3]} 53... Rf3 {[%clk 0:00:03.8]}
54. f8=Q {[%clk 0:00:10.2]} 54... Rxf8 {[%clk 0:00:04.1]} 55. Rxf8 {[%clk
0:00:11.1]} 55... Kg2 {[%clk 0:00:04.9]} 56. Kc5 {[%clk 0:00:12]} 56... h3
{[%clk 0:00:05.1]} 57. Kxb5 {[%clk 0:00:12.9]} 57... h2 {[%clk 0:00:05.5]} 58.
Rh8 {[%clk 0:00:13.8]} 1-0

[Event "Late-Titled-Tuesday-Blitz-April-16-2024"]
[Site "Chess.com"]
[Date "2024.04.16"]
[Round "1"]
[White "jcibarra"]
[Black "zverr1"]
[Result "1-0"]
[WhiteElo "2916"]
[BlackElo "2496"]
[TimeControl "180+1"]
[EndTime "14:08:08 PDT"]
[Termination "jcibarra won by checkmate"]

1. e4 {[%clk 0:02:57.9]} 1... c5 {[%clk 0:02:58.3]} 2. Nf3 {[%clk 0:02:57.8]}
2... g6 {[%clk 0:02:54.1]} 3. c3 {[%clk 0:02:56.5]} 3... Bg7 {[%clk 0:02:53.5]}
4. d4 {[%clk 0:02:57.1]} 4... cxd4 {[%clk 0:02:53.7]} 5. cxd4 {[%clk 0:02:58]}
5... d5 {[%clk 0:02:54.2]} 6. e5 {[%clk 0:02:57.7]} 6... a6 {[%clk 0:02:54]} 7.
h3 {[%clk 0:02:50]} 7... Nc6 {[%clk 0:02:53.3]} 8. Nc3 {[%clk 0:02:49.8]} 8...
f6 {[%clk 0:02:53.5]} 9. Bf4 {[%clk 0:02:41.6]} 9... Nh6 {[%clk 0:02:53.3]} 10.
Rc1 {[%clk 0:02:36.9]} 10... Nf7 {[%clk 0:02:49.6]} 11. exf6 {[%clk 0:02:35.3]}
11... exf6 {[%clk 0:02:44]} 12. Be2 {[%clk 0:02:35.1]} 12... O-O {[%clk
0:02:42.3]} 13. O-O {[%clk 0:02:34.8]} 13... Kh8 {[%clk 0:02:42.7]} 14. Na4
{[%clk 0:02:33.4]} 14... Nd6 {[%clk 0:02:39.8]} 15. Nc5 {[%clk 0:02:16.1]} 15...
Ne4 {[%clk 0:02:39.5]} 16. Re1 {[%clk 0:02:14.1]} 16... Nxc5 {[%clk 0:02:25.8]}
17. dxc5 {[%clk 0:02:10.6]} 17... Bf5 {[%clk 0:02:08.1]} 18. Nd4 {[%clk
0:02:06.2]} 18... Nxd4 {[%clk 0:02:02.3]} 19. Qxd4 {[%clk 0:02:07.1]} 19... Be6
{[%clk 0:01:57]} 20. c6 {[%clk 0:01:56.7]} 20... bxc6 {[%clk 0:01:51.2]} 21.
Rxc6 {[%clk 0:01:57.6]} 21... Bf5 {[%clk 0:01:29.2]} 22. b4 {[%clk 0:01:36.3]}
22... Qd7 {[%clk 0:01:12.4]} 23. Rxa6 {[%clk 0:01:16.2]} 23... Rxa6 {[%clk
0:01:01.2]} 24. Bxa6 {[%clk 0:01:17.1]} 24... Qa4 {[%clk 0:01:01.7]} 25. Bf1
{[%clk 0:01:09]} 25... Qxa2 {[%clk 0:01:00.2]} 26. b5 {[%clk 0:01:02.1]} 26...
Qb3 {[%clk 0:00:50.9]} 27. b6 {[%clk 0:01:00]} 27... h5 {[%clk 0:00:33]} 28. Re7
{[%clk 0:00:56.4]} 28... Bc8 {[%clk 0:00:29.9]} 29. Qc5 {[%clk 0:00:42.2]} 29...
Qb1 {[%clk 0:00:18.3]} 30. Qc7 {[%clk 0:00:29.7]} 30... Ba6 {[%clk 0:00:14.5]}
31. Rxg7 {[%clk 0:00:29]} 31... g5 {[%clk 0:00:12.5]} 32. Bc1 {[%clk 0:00:11.4]}
32... Bxf1 {[%clk 0:00:10]} 33. Kxf1 {[%clk 0:00:12.3]} 33... Qd3+ {[%clk
0:00:06.3]} 34. Kg1 {[%clk 0:00:12.3]} 34... Qd1+ {[%clk 0:00:05.2]} 35. Kh2
{[%clk 0:00:12.6]} 35... Qd3 {[%clk 0:00:05.7]} 36. b7 {[%clk 0:00:11.6]} 36...
Qf5 {[%clk 0:00:03.8]} 37. b8=Q {[%clk 0:00:10.5]} 37... Rxb8 {[%clk 0:00:03.7]}
38. Rxg5 {[%clk 0:00:06]} 38... fxg5 {[%clk 0:00:02.1]} 39. Qxb8+ {[%clk
0:00:06.2]} 39... Kh7 {[%clk 0:00:01.8]} 40. Qc7+ {[%clk 0:00:06.6]} 40... Kg6
{[%clk 0:00:02.3]} 41. Qd6+ {[%clk 0:00:06.7]} 41... Kh7 {[%clk 0:00:03]} 42. f3
{[%clk 0:00:06.7]} 42... h4 {[%clk 0:00:02.7]} 43. Qe7+ {[%clk 0:00:05.8]} 43...
Kg6 {[%clk 0:00:03.4]} 44. Qd6+ {[%clk 0:00:05.7]} 44... Kh7 {[%clk 0:00:03.7]}
45. Be3 {[%clk 0:00:05.8]} 45... Kg8 {[%clk 0:00:02.6]} 46. Bd4 {[%clk
0:00:05.8]} 46... Kf7 {[%clk 0:00:02.8]} 47. Qe5 {[%clk 0:00:05.4]} 47... Qd3
{[%clk 0:00:02]} 48. Qf6+ {[%clk 0:00:05.5]} 48... Ke8 {[%clk 0:00:02.3]} 49.
Qe6+ {[%clk 0:00:05.5]} 49... Kf8 {[%clk 0:00:01.6]} 50. Qd6+ {[%clk 0:00:03.1]}
50... Kg8 {[%clk 0:00:01.5]} 51. Qd8+ {[%clk 0:00:02.7]} 51... Kh7 {[%clk
0:00:01.8]} 52. Qh8+ {[%clk 0:00:02.8]} 52... Kg6 {[%clk 0:00:02.5]} 53. Qf6+
{[%clk 0:00:03.4]} 53... Kh5 {[%clk 0:00:02.3]} 54. Qf7+ {[%clk 0:00:04]} 54...
Kh6 {[%clk 0:00:02.7]} 55. Bg7+ {[%clk 0:00:04.2]} 55... Kh7 {[%clk 0:00:02.2]}
56. Bf6+ {[%clk 0:00:04.7]} 56... Kh6 {[%clk 0:00:02.6]} 57. Qg7+ {[%clk
0:00:04.9]} 57... Kh5 {[%clk 0:00:03.2]} 58. Qxg5# {[%clk 0:00:05.4]} 1-0